[Event "3rd FIDE WCCC Rapid G12 2019"]
[Site "Minsk"]
[Date "2019.08.16"]
[Round "4.3"]
[White "Vu, My Linh"]
[Black "Komissarova, Soigina"]
[Result "0-1"]
[ECO "D31"]
[WhiteElo "1467"]
[BlackElo "1663"]
[Annotator "NA"]
[PlyCount "150"]
[EventDate "2019.08.16"]
[EventType "swiss"]
[EventCountry "BLR"]
[SourceTitle "playchess.com"]
[Source "ChessBase"]
[SourceQuality "1"]
[TimeControl "600+5"]

1. d4 {[%emt 0:00:00]} d5 {[%emt 0:00:00]} 2. c4 {[%emt 0:00:00]} e6 {[%emt 0:00:00]} 3. Nc3 {[%emt 0:00:00]} c6 {[%emt 0:00:00]} 4. cxd5 {[%emt 0:00:01]} exd5 {[%emt 0:00:02]} 5. Nf3 {[%emt 0:00:02]} f5 {[%emt 0:00:08]} 6. g3 {[%emt 0:00:05]} Bd6 {[%emt 0:00:05]} 7. Bg2 {[%emt 0:00:02]} Nf6 {[%emt 0:00:02]} 8. O-O {[%emt 0:00:04]} Nbd7 {[%emt 0:00:02]} 9. Nd2 {[%emt 0:00:06]} O-O {[%emt 0:00:05]} 10. f3 {[%emt 0:00:02]} f4 {[%emt 0:00:34]} 11. gxf4 {[%emt 0:00:26]} Bxf4 {[%emt 0:00:03]} 12. Nb3 {[%emt 0:00:02]} Qc7 {[%emt 0:01:04]} 13. Bxf4 {[%emt 0:00:22]} Qxf4 {[%emt 0:00:02]} 14. e4 {[%emt 0:00:13]} Re8 {[%emt 0:00:35]} 15. Qd2 {[%emt 0:00:22]} Qh4 {[%emt 0:00:27]} 16. Qf2 {[%emt 0:00:12]} Qh6 {[%emt 0:00:55]} 17. Rae1 {[%emt 0:00:30]} Rf8 {[%emt 0:00:32]} 18. e5 {[%emt 0:02:13]} Nh5 {[%emt 0:00:05]} 19. e6 {[%emt 0:00:43]} Ndf6 {[%emt 0:00:15]} 20. e7 {[%emt 0:00:04]} Re8 {[%emt 0:00:03]} 21. f4 {[%emt 0:00:10]} Ng4 {[%emt 0:00:19]} 22. Qh4 {[%emt 0:00:15]} Bf5 {[%emt 0:01:24]} 23. Bh3 {[%emt 0:00:42]} Nhf6 {[%emt 0:00:43]} 24. Qxh6 {[%emt 0:00:49]} Nxh6 {[%emt 0:00:03]} 25. Bxf5 {[%emt 0:01:00]} Nxf5 {[%emt 0:00:01]} 26. Re5 {[%emt 0:00:03]} Nxe7 {[%emt 0:00:32]} 27. Rfe1 {[%emt 0:00:02]} Ng6 {[%emt 0:00:51]} 28. Rxe8+ {[%emt 0:01:20]} Nxe8 29. Nc5 {[%emt 0:00:10]} b6 {[%emt 0:00:39]} 30. Ne6 {[%emt 0:00:04]} Nd6 {[%emt 0:00:18]} 31. Kf2 {[%emt 0:01:34]} Nf5 {[%emt 0:00:28]} 32. Ne2 {[%emt 0:00:27]} Re8 {[%emt 0:00:17]} 33. Ng5 {[%emt 0:00:03]} h6 {[%emt 0:00:07]} 34. Nh3 {[%emt 0:00:15]} Re3 {[%emt 0:00:26]} 35. Nhg1 {[%emt 0:00:13]} Re4 {[%emt 0:00:16]} 36. Rc1 {[%emt 0:00:06]} Nxd4 {[%emt 0:00:31]} 37. Nxd4 {[%emt 0:00:08]} Rxd4 38. Rxc6 {[%emt 0:00:03]} Rxf4+ {[%emt 0:00:08]} 39. Kg3 {[%emt 0:00:03]} Ra4 {[%emt 0:00:07]} 40. Rxg6 {[%emt 0:00:03]} Rxa2 {[%emt 0:00:09]} 41. b4 {[%emt 0:00:03]} d4 {[%emt 0:00:25]} 42. Rg4 {[%emt 0:00:04]} d3 {[%emt 0:00:06]} 43. Rd4 {[%emt 0:00:01]} Ra3 {[%emt 0:00:09]} 44. Kf2 {[%emt 0:00:03]} Rb3 {[%emt 0:00:13]} 45. Nf3 {[%emt 0:00:08]} a5 {[%emt 0:00:06]} 46. bxa5 {[%emt 0:00:07]} bxa5 {[%emt 0:00:01]} 47. Ra4 {[%emt 0:00:01]} Rb5 {[%emt 0:00:17]} 48. Ke3 {[%emt 0:00:04]} Rd5 {[%emt 0:00:01]} 49. Nd4 {[%emt 0:00:01]} Kf7 {[%emt 0:00:10]} 50. Kxd3 {[%emt 0:00:02]} Kf6 {[%emt 0:00:07]} 51. Kc4 {[%emt 0:00:04]} Rh5 {[%emt 0:00:04]} 52. Nf3 {[%emt 0:00:02]} Rh3 {[%emt 0:00:05]} 53. Ra3 {[%emt 0:00:05]} g5 {[%emt 0:00:04]} 54. Rd3 {[%emt 0:00:11]} g4 {[%emt 0:00:07]} 55. Ne1 {[%emt 0:00:16]} Rxh2 {[%emt 0:00:02]} 56. Rg3 {[%emt 0:00:04]} Kf5 {[%emt 0:00:07]} 57. Nd3 {[%emt 0:00:03]} h5 {[%emt 0:00:05]} 58. Kb5 {[%emt 0:00:05]} h4 {[%emt 0:00:05]} 59. Rg1 {[%emt 0:00:02]} Rd2 {[%emt 0:00:10]} 60. Ne1 {[%emt 0:00:09]} g3 {[%emt 0:00:08]} 61. Kxa5 {[%emt 0:00:02]} Kg4 {[%emt 0:00:04]} 62. Kb4 {[%emt 0:00:05]} h3 {[%emt 0:00:06]} 63. Kc3 {[%emt 0:00:02]} Rd1 {[%emt 0:00:05]} 64. Kc2 {[%emt 0:00:03]} Ra1 {[%emt 0:00:03]} 65. Kd2 {[%emt 0:00:01]} h2 {[%emt 0:00:05]} 66. Rh1 {[%emt 0:00:08]} Kh3 {[%emt 0:00:07]} 67. Ke2 {[%emt 0:00:09]} g2 {[%emt 0:00:00]} 68. Nxg2 {[%emt 0:00:08]} Rxh1 {[%emt 0:00:02]} 69. Kf2 {[%emt 0:00:02]} Ra1 {[%emt 0:00:02]} 70. Nf4+ {[%emt 0:00:02]} Kg4 {[%emt 0:00:01]} 71. Ne2 {[%emt 0:00:04]} h1=Q {[%emt 0:00:02]} 72. Ke3 {[%emt 0:00:06]} Qf3+ {[%emt 0:00:02]} 73. Kd2 {[%emt 0:00:02]} Ra2+ {[%emt 0:00:01]} 74. Ke1 {[%emt 0:00:01]} Qh1+ {[%emt 0:00:02]} 75. Ng1 {[%emt 0:00:02]} Qxg1# {[%emt 0:00:01]} 0-1

[Event "3rd FIDE WCCC Rapid G12 2019"]
[Site "Minsk"]
[Date "2019.08.16"]
[Round "4.4"]
[White "Babic, Masa"]
[Black "Mikheeva, Galina"]
[Result "1-0"]
[ECO "A88"]
[WhiteElo "1719"]
[BlackElo "1952"]
[Annotator "NA"]
[PlyCount "85"]
[EventDate "2019.08.16"]
[EventType "swiss"]
[EventCountry "BLR"]
[SourceTitle "playchess.com"]
[Source "ChessBase"]
[SourceQuality "1"]
[TimeControl "600+5"]

1. Nf3 {[%emt 0:00:00]} f5 {[%emt 0:00:00]} 2. d4 {[%emt 0:00:00]} Nf6 {[%emt 0:00:00]} 3. g3 {[%emt 0:00:00]} g6 {[%emt 0:00:01]} 4. Bg2 {[%emt 0:00:00]} Bg7 {[%emt 0:00:00]} 5. c4 {[%emt 0:00:00]} O-O {[%emt 0:00:03]} 6. O-O d6 {[%emt 0:00:02]} 7. Nc3 {[%emt 0:00:09]} c6 {[%emt 0:00:01]} 8. b3 {[%emt 0:00:48]} Qa5 {[%emt 0:00:03]} 9. Bb2 {[%emt 0:00:04]} e5 {[%emt 0:00:59]} 10. dxe5 {[%emt 0:01:39]} dxe5 {[%emt 0:00:01]} 11. Qc2 {[%emt 0:01:05]} Nbd7 {[%emt 0:01:51]} 12. Rfd1 {[%emt 0:00:12]} e4 {[%emt 0:00:09]} 13. Nd4 {[%emt 0:00:12]} Ne5 {[%emt 0:00:04]} 14. a3 {[%emt 0:01:04]} Qc7 {[%emt 0:04:44]} 15. Rac1 {[%emt 0:00:12]} Re8 {[%emt 0:00:47]} 16. Ba1 {[%emt 0:02:52]} Be6 {[%emt 0:00:47]} 17. Nxe6 {[%emt 0:00:51]} Rxe6 {[%emt 0:00:00]} 18. Na4 {[%emt 0:00:43]} b6 {[%emt 0:00:23]} 19. Nc3 {[%emt 0:00:33]} Ree8 {[%emt 0:00:32]} 20. h3 {[%emt 0:00:17]} Rad8 {[%emt 0:00:21]} 21. Kh1 {[%emt 0:00:39]} Nf7 {[%emt 0:00:14]} 22. Na4 {[%emt 0:00:04]} h6 {[%emt 0:00:17]} 23. b4 {[%emt 0:00:16]} Kh7 {[%emt 0:00:03]} 24. c5 {[%emt 0:00:03]} b5 {[%emt 0:00:01]} 25. Nc3 {[%emt 0:00:01]} Ne5 {[%emt 0:00:12]} 26. a4 {[%emt 0:00:03]} a6 {[%emt 0:00:06]} 27. Qa2 {[%emt 0:00:05]} Nc4 {[%emt 0:00:11]} 28. Bb2 {[%emt 0:00:04]} Rxd1+ 29. Rxd1 Nxb2 {[%emt 0:00:21]} 30. Qxb2 {[%emt 0:00:02]} Rd8 {[%emt 0:00:07]} 31. Rxd8 Qxd8 {[%emt 0:00:01]} 32. Qc2 {[%emt 0:00:14]} Nd5 {[%emt 0:00:04]} 33. Nxd5 {[%emt 0:00:03]} Qxd5 {[%emt 0:00:01]} 34. axb5 {[%emt 0:00:05]} axb5 {[%emt 0:00:01]} 35. g4 {[%emt 0:00:02]} Qd4 {[%emt 0:00:05]} 36. gxf5 {[%emt 0:00:07]} gxf5 {[%emt 0:00:02]} 37. f3 {[%emt 0:00:04]} Qxb4 {[%emt 0:00:10]} 38. fxe4 Bc3 {[%emt 0:00:17]} 39. exf5 {[%emt 0:00:04]} Qxc5 {[%emt 0:00:03]} 40. f6+ {[%emt 0:00:02]} Kh8 {[%emt 0:00:07]} 41. Qg6 {[%emt 0:00:03]} Qf8 {[%emt 0:00:06]} 42. Be4 {[%emt 0:00:02]} Qg8 {[%emt 0:00:04]} 43. Qxh6+ 1-0

[Event "3rd FIDE WCCC Rapid G12 2019"]
[Site "Minsk"]
[Date "2019.08.16"]
[Round "4.5"]
[White "Putinceva, Marina"]
[Black "Babic, Milana"]
[Result "1-0"]
[ECO "B10"]
[WhiteElo "1476"]
[BlackElo "1689"]
[Annotator "NA"]
[PlyCount "98"]
[EventDate "2019.08.16"]
[EventType "swiss"]
[EventCountry "BLR"]
[SourceTitle "playchess.com"]
[Source "ChessBase"]
[SourceQuality "1"]
[TimeControl "600+5"]

1. e4 {[%emt 0:00:00]} c6 {[%emt 0:00:00]} 2. Nf3 {[%emt 0:00:00]} d5 {[%emt 0:00:00]} 3. exd5 {[%emt 0:00:00]} cxd5 {[%emt 0:00:00]} 4. Ne5 {[%emt 0:00:00]} Nc6 {[%emt 0:00:00]} 5. d4 {[%emt 0:00:00]} Qc7 {[%emt 0:00:05]} 6. Bb5 {[%emt 0:00:08]} Bd7 {[%emt 0:00:05]} 7. Nxd7 {[%emt 0:00:02]} Qxd7 {[%emt 0:00:02]} 8. c3 {[%emt 0:00:05]} a6 {[%emt 0:00:06]} 9. Bd3 {[%emt 0:00:03]} Nf6 {[%emt 0:00:02]} 10. Nd2 {[%emt 0:00:03]} e6 {[%emt 0:00:02]} 11. O-O {[%emt 0:00:03]} Be7 {[%emt 0:00:01]} 12. Re1 {[%emt 0:00:03]} O-O {[%emt 0:00:01]} 13. Nf3 {[%emt 0:00:02]} Qc7 {[%emt 0:00:13]} 14. Ne5 {[%emt 0:00:09]} Nxe5 15. dxe5 {[%emt 0:00:02]} Nd7 {[%emt 0:00:21]} 16. Bf4 {[%emt 0:00:50]} Rfd8 {[%emt 0:00:13]} 17. Re3 {[%emt 0:01:05]} Bc5 {[%emt 0:00:10]} 18. Bxh7+ {[%emt 0:03:41]} Kf8 {[%emt 0:01:41]} 19. Rg3 {[%emt 0:01:24]} Nxe5 {[%emt 0:02:52]} 20. Qh5 {[%emt 0:02:01]} Bd6 {[%emt 0:00:01]} 21. Rxg7 {[%emt 0:01:14]} Kxg7 {[%emt 0:00:47]} 22. Qh6+ {[%emt 0:00:36]} Kh8 {[%emt 0:00:01]} 23. Bg6+ {[%emt 0:00:12]} Kg8 {[%emt 0:00:00]} 24. Bh7+ {[%emt 0:00:08]} Kh8 {[%emt 0:00:01]} 25. Bg6+ Kg8 26. Bh7+ {[%emt 0:00:10]} Kh8 {[%emt 0:00:01]} 27. Bg6+ {[%emt 0:00:07]} Kg8 {[%emt 0:00:00]} 28. Bh7+ {[%emt 0:00:00]} Kh8 {[%emt 0:00:01]} 29. Bg6+ {[%emt 0:00:01]} Kg8 {[%emt 0:00:00]} 30. Bh7+ {[%emt 0:00:01]} Kh8 {[%emt 0:00:01]} 31. Bg6+ Kg8 32. Bh7+ {[%emt 0:00:02]} Kh8 {[%emt 0:00:01]} 33. Bf5+ {[%emt 0:00:05]} Kg8 {[%emt 0:00:01]} 34. Bh7+ {[%emt 0:00:02]} Kh8 {[%emt 0:00:01]} 35. Bf5+ {[%emt 0:00:01]} Kg8 {[%emt 0:00:00]} 36. Bh7+ Kh8 37. Bf5+ {[%emt 0:00:39]} Kg8 {[%emt 0:00:02]} 38. Bh7+ Kh8 39. Bf5+ Kg8 40. Bh7+ Kh8 41. Be4+ {[%emt 0:00:04]} Kg8 {[%emt 0:00:02]} 42. Bh7+ {[%emt 0:00:02]} Kh8 {[%emt 0:00:01]} 43. Bg6+ {[%emt 0:00:00]} Kg8 {[%emt 0:00:01]} 44. Bh7+ {[%emt 0:00:01]} Kh8 {[%emt 0:00:00]} 45. Bg6+ {[%emt 0:00:01]} Kg8 {[%emt 0:00:01]} 46. Bh7+ Kh8 47. Bg6+ {[%emt 0:00:02]} Kg8 {[%emt 0:00:01]} 48. Bh7+ {[%emt 0:00:00]} Kh8 {[%emt 0:00:00]} 49. Bf5+ {[%emt 0:00:01]} Kg8 {[%emt 0:00:01]} 1-0

[Event "3rd FIDE WCCC Rapid G12 2019"]
[Site "Minsk"]
[Date "2019.08.16"]
[Round "4.6"]
[White "Ivanytska, Liudmyla"]
[Black "Nguyen, Le Cam Hien"]
[Result "1-0"]
[ECO "B76"]
[WhiteElo "1539"]
[BlackElo "1579"]
[Annotator "NA"]
[PlyCount "93"]
[EventDate "2019.08.16"]
[EventType "swiss"]
[EventCountry "BLR"]
[SourceTitle "playchess.com"]
[Source "ChessBase"]
[SourceQuality "1"]
[TimeControl "600+5"]

1. e4 {[%emt 0:00:00]} c5 {[%emt 0:00:00]} 2. Nf3 {[%emt 0:00:00]} d6 {[%emt 0:00:00]} 3. d4 {[%emt 0:00:00]} cxd4 {[%emt 0:00:01]} 4. Nxd4 {[%emt 0:00:02]} Nf6 {[%emt 0:00:04]} 5. Nc3 {[%emt 0:00:03]} g6 {[%emt 0:00:03]} 6. f3 {[%emt 0:00:03]} Bg7 {[%emt 0:00:04]} 7. Be3 {[%emt 0:00:02]} O-O {[%emt 0:00:05]} 8. Qd2 {[%emt 0:00:02]} Nc6 {[%emt 0:00:04]} 9. O-O-O {[%emt 0:00:02]} d5 {[%emt 0:00:48]} 10. Nxc6 {[%emt 0:00:43]} bxc6 {[%emt 0:00:01]} 11. exd5 {[%emt 0:00:01]} cxd5 {[%emt 0:00:07]} 12. Nxd5 {[%emt 0:00:04]} Nxd5 {[%emt 0:00:21]} 13. Qxd5 {[%emt 0:00:02]} Rb8 {[%emt 0:00:07]} 14. c3 {[%emt 0:00:50]} Qc7 {[%emt 0:00:06]} 15. Qc5 {[%emt 0:00:08]} Qb7 {[%emt 0:00:32]} 16. Rd2 {[%emt 0:00:01]} Be6 {[%emt 0:00:18]} 17. Kd1 {[%emt 0:01:11]} Bxa2 {[%emt 0:00:28]} 18. Qxa7 {[%emt 0:00:21]} Qb3+ {[%emt 0:00:21]} 19. Ke1 {[%emt 0:00:02]} Qe6 {[%emt 0:01:28]} 20. Kf2 {[%emt 0:00:15]} Bf6 {[%emt 0:01:45]} 21. Be2 {[%emt 0:00:16]} Ra8 {[%emt 0:00:34]} 22. Qd7 {[%emt 0:00:03]} Qe5 {[%emt 0:00:56]} 23. Bd4 {[%emt 0:00:01]} Qg5 {[%emt 0:00:27]} 24. Bxf6 {[%emt 0:00:02]} exf6 {[%emt 0:00:10]} 25. h4 {[%emt 0:00:01]} Qe5 {[%emt 0:00:20]} 26. Qd6 {[%emt 0:00:06]} Qa5 {[%emt 0:00:29]} 27. Qxf6 {[%emt 0:00:07]} Qa7+ {[%emt 0:00:04]} 28. Qd4 {[%emt 0:00:02]} Qc7 {[%emt 0:00:15]} 29. Qf6 {[%emt 0:00:25]} Rfe8 {[%emt 0:00:10]} 30. h5 {[%emt 0:00:08]} Re6 {[%emt 0:00:10]} 31. Qd4 {[%emt 0:00:05]} gxh5 {[%emt 0:00:44]} 32. Rxh5 {[%emt 0:00:05]} Rg6 {[%emt 0:00:04]} 33. g4 {[%emt 0:00:03]} Be6 {[%emt 0:00:08]} 34. Rd1 {[%emt 0:00:22]} Rg7 {[%emt 0:00:24]} 35. Rdh1 {[%emt 0:00:07]} Rd8 {[%emt 0:00:03]} 36. Qe3 {[%emt 0:00:03]} Bd7 {[%emt 0:00:35]} 37. Rg5 {[%emt 0:00:08]} Qc6 {[%emt 0:00:31]} 38. Rxg7+ {[%emt 0:00:03]} Kxg7 {[%emt 0:00:01]} 39. Qg5+ Qg6 {[%emt 0:00:06]} 40. Qxd8 {[%emt 0:00:12]} Bc6 {[%emt 0:00:04]} 41. Qd4+ {[%emt 0:00:03]} Kg8 {[%emt 0:00:02]} 42. Bd3 {[%emt 0:00:04]} Qg5 {[%emt 0:00:04]} 43. Bxh7+ {[%emt 0:00:04]} Kf8 {[%emt 0:00:01]} 44. Qh8+ {[%emt 0:00:10]} Ke7 {[%emt 0:00:02]} 45. Re1+ {[%emt 0:00:01]} Kd7 {[%emt 0:00:02]} 46. Qe8+ {[%emt 0:00:03]} Kc7 {[%emt 0:00:02]} 47. Qe7+ {[%emt 0:00:02]} 1-0

[Event "3rd FIDE WCCC Rapid G12 2019"]
[Site "Minsk"]
[Date "2019.08.17"]
[Round "5.1"]
[White "Komissarova, Soigina"]
[Black "Vlasova, Olesia"]
[Result "1-0"]
[ECO "A61"]
[WhiteElo "1663"]
[BlackElo "1799"]
[Annotator "NA"]
[PlyCount "59"]
[EventDate "2019.08.16"]
[EventType "swiss"]
[EventCountry "BLR"]
[SourceTitle "playchess.com"]
[Source "ChessBase"]
[SourceQuality "1"]
[TimeControl "600+5"]

1. d4 {[%emt 0:00:00]} Nf6 {[%emt 0:00:00]} 2. c4 {[%emt 0:00:00]} c5 {[%emt 0:00:00]} 3. d5 {[%emt 0:00:01]} e6 {[%emt 0:00:03]} 4. Nc3 {[%emt 0:00:02]} exd5 {[%emt 0:00:03]} 5. cxd5 {[%emt 0:00:02]} d6 {[%emt 0:00:02]} 6. Nf3 {[%emt 0:00:01]} g6 {[%emt 0:00:03]} 7. h3 {[%emt 0:00:02]} Bg7 {[%emt 0:00:05]} 8. e4 {[%emt 0:00:02]} O-O {[%emt 0:00:04]} 9. Bd3 {[%emt 0:00:01]} b5 {[%emt 0:00:17]} 10. Bxb5 {[%emt 0:00:13]} Nxe4 {[%emt 0:00:12]} 11. Nxe4 {[%emt 0:00:02]} Qa5+ {[%emt 0:00:02]} 12. Nfd2 {[%emt 0:00:02]} Qxb5 {[%emt 0:00:06]} 13. Nxd6 {[%emt 0:00:03]} Qa6 {[%emt 0:00:18]} 14. N2c4 {[%emt 0:00:05]} Rd8 {[%emt 0:00:46]} 15. Bf4 {[%emt 0:03:50]} Nd7 {[%emt 0:00:36]} 16. O-O {[%emt 0:00:24]} Nb6 {[%emt 0:00:31]} 17. Nxb6 {[%emt 0:00:09]} Qxb6 {[%emt 0:00:08]} 18. Nxc8 {[%emt 0:00:01]} Raxc8 {[%emt 0:00:07]} 19. Rb1 {[%emt 0:00:02]} Qb7 {[%emt 0:01:54]} 20. d6 {[%emt 0:00:26]} Qe4 {[%emt 0:01:43]} 21. Qd2 {[%emt 0:00:14]} Be5 {[%emt 0:00:34]} 22. Bxe5 {[%emt 0:00:21]} Qxe5 {[%emt 0:00:01]} 23. Rbd1 {[%emt 0:00:21]} Rc6 {[%emt 0:00:47]} 24. d7 {[%emt 0:01:34]} Rc7 {[%emt 0:00:14]} 25. Rde1 {[%emt 0:01:02]} Qf6 {[%emt 0:01:09]} 26. Re8+ {[%emt 0:01:09]} Kg7 {[%emt 0:00:00]} 27. Rxd8 Qxd8 {[%emt 0:00:01]} 28. Rd1 {[%emt 0:00:10]} Kf8 {[%emt 0:00:29]} 29. Qd6+ {[%emt 0:00:02]} Kg7 {[%emt 0:00:20]} 30. Qxc7 {[%emt 0:00:05]} 1-0

[Event "3rd FIDE WCCC Rapid G12 2019"]
[Site "Minsk"]
[Date "2019.08.17"]
[Round "5.2"]
[White "Babic, Masa"]
[Black "Shubenkova, Veronika"]
[Result "0-1"]
[ECO "A06"]
[WhiteElo "1719"]
[BlackElo "1740"]
[Annotator "NA"]
[PlyCount "76"]
[EventDate "2019.08.16"]
[EventType "swiss"]
[EventCountry "BLR"]
[SourceTitle "playchess.com"]
[Source "ChessBase"]
[SourceQuality "1"]
[TimeControl "600+5"]

1. Nf3 {[%emt 0:00:00]} d5 {[%emt 0:00:00]} 2. g3 {[%emt 0:00:00]} e6 {[%emt 0:00:00]} 3. Bg2 {[%emt 0:00:00]} Bd6 {[%emt 0:00:00]} 4. d4 {[%emt 0:00:07]} f5 {[%emt 0:00:00]} 5. c4 {[%emt 0:00:13]} c6 {[%emt 0:00:01]} 6. O-O {[%emt 0:00:10]} Nf6 {[%emt 0:00:01]} 7. c5 {[%emt 0:00:03]} Bc7 {[%emt 0:00:02]} 8. Qa4 {[%emt 0:00:02]} O-O {[%emt 0:00:20]} 9. Nc3 {[%emt 0:00:01]} Nbd7 {[%emt 0:00:11]} 10. Bf4 {[%emt 0:00:04]} Ne4 {[%emt 0:00:07]} 11. e3 {[%emt 0:00:14]} Re8 {[%emt 0:00:08]} 12. Nxe4 {[%emt 0:03:13]} fxe4 {[%emt 0:00:03]} 13. Bg5 {[%emt 0:00:18]} Nf6 {[%emt 0:00:23]} 14. Ne5 {[%emt 0:00:19]} h6 {[%emt 0:02:11]} 15. Bxf6 {[%emt 0:00:24]} gxf6 {[%emt 0:01:16]} 16. Ng4 {[%emt 0:00:10]} h5 {[%emt 0:00:10]} 17. Qd1 {[%emt 0:01:40]} hxg4 18. Qxg4+ {[%emt 0:00:02]} Kf8 {[%emt 0:00:02]} 19. Qh5 {[%emt 0:00:46]} Re7 {[%emt 0:00:36]} 20. f3 {[%emt 0:00:30]} Rg7 {[%emt 0:02:27]} 21. fxe4 {[%emt 0:00:32]} dxe4 {[%emt 0:00:02]} 22. Bxe4 {[%emt 0:00:22]} f5 {[%emt 0:00:08]} 23. Qh8+ {[%emt 0:00:50]} Kf7 {[%emt 0:00:10]} 24. Qh5+ {[%emt 0:00:05]} Kg8 {[%emt 0:00:24]} 25. Bc2 {[%emt 0:00:59]} Bd7 {[%emt 0:00:04]} 26. Bb3 {[%emt 0:00:06]} Qg5 {[%emt 0:00:45]} 27. Qf3 {[%emt 0:00:43]} Rf8 {[%emt 0:00:11]} 28. e4 {[%emt 0:00:07]} f4 {[%emt 0:00:22]} 29. d5 {[%emt 0:00:09]} Rf6 {[%emt 0:00:35]} 30. Kh1 {[%emt 0:00:08]} Be5 {[%emt 0:00:20]} 31. dxe6 {[%emt 0:00:03]} Be8 {[%emt 0:00:33]} 32. e7+ {[%emt 0:00:04]} Kh7 {[%emt 0:00:02]} 33. Qg2 {[%emt 0:00:09]} Rh6 {[%emt 0:00:32]} 34. Rf2 {[%emt 0:00:08]} fxg3 {[%emt 0:00:03]} 35. Qf3 {[%emt 0:00:06]} gxf2 {[%emt 0:00:12]} 36. Qxf2 {[%emt 0:00:04]} Rxh2+ {[%emt 0:00:01]} 37. Qxh2+ {[%emt 0:00:02]} Bxh2 {[%emt 0:00:01]} 38. Kxh2 {[%emt 0:00:03]} Qg2# {[%emt 0:00:01]} 0-1

[Event "3rd FIDE WCCC Rapid G12 2019"]
[Site "Minsk"]
[Date "2019.08.17"]
[Round "5.3"]
[White "Kirdyashkina, Ekaterina"]
[Black "Szczotka, Klara"]
[Result "1-0"]
[ECO "B40"]
[WhiteElo "1691"]
[BlackElo "1732"]
[Annotator "NA"]
[PlyCount "99"]
[EventDate "2019.08.16"]
[EventType "swiss"]
[EventCountry "BLR"]
[SourceTitle "playchess.com"]
[Source "ChessBase"]
[SourceQuality "1"]
[TimeControl "600+5"]

1. e4 {[%emt 0:00:00]} c5 {[%emt 0:00:00]} 2. Nf3 {[%emt 0:00:02]} e6 {[%emt 0:00:00]} 3. c3 {[%emt 0:00:03]} Nf6 {[%emt 0:00:00]} 4. e5 {[%emt 0:00:02]} Nd5 {[%emt 0:00:02]} 5. d4 {[%emt 0:00:01]} d6 {[%emt 0:00:04]} 6. exd6 {[%emt 0:00:10]} Qxd6 {[%emt 0:00:20]} 7. Bb5+ {[%emt 0:00:19]} Bd7 {[%emt 0:00:15]} 8. Bxd7+ {[%emt 0:00:04]} Nxd7 {[%emt 0:00:10]} 9. O-O {[%emt 0:00:05]} Qb6 {[%emt 0:00:35]} 10. Nbd2 {[%emt 0:00:08]} cxd4 {[%emt 0:00:15]} 11. Nxd4 {[%emt 0:00:36]} Rc8 {[%emt 0:00:02]} 12. N2f3 {[%emt 0:00:22]} Be7 {[%emt 0:00:34]} 13. Qa4 {[%emt 0:00:10]} Qc5 {[%emt 0:02:48]} 14. Nb3 {[%emt 0:01:33]} Qc6 {[%emt 0:01:24]} 15. Qxa7 {[%emt 0:00:56]} b6 {[%emt 0:03:30]} 16. Qa6 {[%emt 0:00:27]} Ra8 {[%emt 0:00:28]} 17. Qe2 {[%emt 0:00:10]} Nc5 {[%emt 0:00:17]} 18. Nbd4 {[%emt 0:00:01]} Qb7 {[%emt 0:00:24]} 19. Qb5+ {[%emt 0:00:06]} Kf8 {[%emt 0:00:11]} 20. Qe2 {[%emt 0:00:08]} Bf6 {[%emt 0:00:10]} 21. Be3 {[%emt 0:00:29]} Nxe3 {[%emt 0:00:05]} 22. Qxe3 {[%emt 0:00:01]} Na4 {[%emt 0:00:05]} 23. Rab1 {[%emt 0:00:12]} Nc5 {[%emt 0:00:02]} 24. a3 {[%emt 0:00:33]} Qd5 {[%emt 0:00:05]} 25. Rfd1 {[%emt 0:00:07]} Qb7 {[%emt 0:00:10]} 26. b4 {[%emt 0:00:22]} Ne4 {[%emt 0:00:03]} 27. Re1 {[%emt 0:00:10]} Nd6 {[%emt 0:00:05]} 28. Qd3 {[%emt 0:00:08]} Qc7 {[%emt 0:00:06]} 29. Ra1 {[%emt 0:00:28]} Rc8 {[%emt 0:00:04]} 30. Red1 {[%emt 0:00:10]} Nc4 {[%emt 0:00:05]} 31. Nb5 {[%emt 0:00:34]} Qc6 {[%emt 0:00:06]} 32. Na7 {[%emt 0:00:01]} Qb7 {[%emt 0:00:05]} 33. Nxc8 {[%emt 0:00:03]} Qxc8 {[%emt 0:00:00]} 34. Qd7 {[%emt 0:00:16]} Qxd7 {[%emt 0:00:10]} 35. Rxd7 {[%emt 0:00:02]} Ke8 {[%emt 0:00:05]} 36. Rc7 {[%emt 0:00:08]} b5 {[%emt 0:00:04]} 37. Rc5 {[%emt 0:00:01]} Nd6 {[%emt 0:00:03]} 38. Nd4 {[%emt 0:00:05]} Bxd4 {[%emt 0:00:02]} 39. cxd4 {[%emt 0:00:00]} Kd7 {[%emt 0:00:02]} 40. Rac1 {[%emt 0:00:04]} Rb8 {[%emt 0:00:04]} 41. Rc7+ {[%emt 0:00:02]} Ke8 {[%emt 0:00:02]} 42. R1c6 {[%emt 0:00:03]} Nc4 {[%emt 0:00:05]} 43. a4 {[%emt 0:00:17]} Na3 {[%emt 0:00:08]} 44. a5 {[%emt 0:00:02]} Nc4 {[%emt 0:00:04]} 45. a6 {[%emt 0:00:01]} Ra8 {[%emt 0:00:05]} 46. a7 {[%emt 0:00:01]} Kd8 {[%emt 0:00:05]} 47. Rxf7 {[%emt 0:00:04]} e5 {[%emt 0:00:02]} 48. d5 {[%emt 0:00:09]} e4 {[%emt 0:00:04]} 49. Rf8+ {[%emt 0:00:01]} Kd7 {[%emt 0:00:02]} 50. Rxa8 {[%emt 0:00:03]} 1-0